Cogmind - Beta 16 @@@ ROGUE MODE // 2025.10.27 @ 16:01:01 Player: DrZettl Result: Destroyed by G-34 Mercenary with Small Laser Performance ------------- Evolutions (0) 0 Regions Visited (4) 800 Robots Destroyed (22) 110 Value Destroyed (619) 619 Prototype IDs (23) 460 Alien Tech Used (0) 0 Bonus (300) 300 TOTAL SCORE: 2289 Bonus ------- Aligned with FarCom 300 Cogmind --------- Core Integrity 0/250 Matter 280/300 Energy 123/125 System Corruption 0% Temperature Cool (6) Movement Treading (160) Location -9/Mines Parts ------- > --- POWER (1) -------- Light Ion Engine > --- PROPULSION (2) --- Light Treads Light Treads > --- UTILITY (2) ------ Large Storage Unit Signal Interpreter > --- WEAPON (2) ------- Assault Rifle Light Assault Rifle > --- INVENTORY (15) --- Ion Engine Ion Engine Light Nuclear Core Wheel Compact Wheel Hover Unit Hover Unit Improved Heat Sink Small Storage Unit Large Storage Unit Seismic Detector 0b10 Alert Chip ECM Suite Small Laser Rocket Launcher Peak State ------------ > --- POWER ------------ Ion Engine > --- PROPULSION ------- Light Treads Light Treads > --- UTILITY ---------- Large Storage Unit Signal Interpreter > --- WEAPON ----------- Small Laser Assault Rifle > --- INVENTORY -------- Ion Engine Ion Engine Light Nuclear Core Light Treads Wheel Compact Wheel Hover Unit Hover Unit Improved Heat Sink Small Storage Unit Large Storage Unit Seismic Detector 0b10 Alert Chip ECM Suite [Rating: 9] Favorites ----------- Power Ion Engine Engine Ion Engine Propulsion Light Treads Treads Light Treads Wheel Wheel Utility Signal Interpreter Device Seismic Detector Storage Large Storage Unit Processor Signal Interpreter Weapon Assault Rifle Energy Gun Small Laser Ballistic Gun Assault Rifle Build | -11 -10 -10 -10 -9 ------- Run | Yrd Mat Min Exi Min Slots Evolved . | . . . . . Power . | . . . . . Propulsion . | . . . . . Utility . | . . . . . Weapon . | . . . . . Parts Attached 16 | 6 8 . . 2 Power 3 | 1 1 . . 1 Engine 3 | 1 1 . . 1 Core . | . . . . . Reactor . | . . . . . Propulsion 4 | 1 3 . . . Treads 3 | 1 2 . . . Leg . | . . . . . Wheel 1 | . 1 . . . Hover . | . . . . . Flight . | . . . . . Utility 4 | 2 2 . . . Device 1 | 1 . . . . Storage 2 | 1 1 . . . Processor 1 | . 1 . . . Hackware . | . . . . . Protection . | . . . . . Artifact . | . . . . . Weapon 5 | 2 2 . . 1 Energy Gun 1 | . 1 . . . Energy Cannon . | . . . . . Ballistic Gun 4 | 2 1 . . 1 Ballistic Cannon . | . . . . . Launcher . | . . . . . Special Weapon . | . . . . . Impact Weapon . | . . . . . Slashing Weapon . | . . . . . Piercing Weapon . | . . . . . Special Melee Weapon . | . . . . . Unidentified Prototypes . | . . . . . Parts Lost 3 | . 2 . . 1 Power 1 | . . . . 1 Propulsion . | . . . . . Utility . | . . . . . Weapon 2 | . 2 . . . Highest Loss Streak 2 | . 2 . . 1 To Critical Strikes . | . . . . . Average Backups 11 | 2 9 13 13 14 Power 2 | . 2 3 3 3 Propulsion 3 | 1 3 5 5 4 Utility 4 | . 3 5 5 6 Weapon . | . . . . 1 Tool/Special . | . . . . . Unused Backups 11 | . 1 . . 10 Power 2 | . . . . 2 Propulsion 3 | . . . . 3 Utility 5 | . 1 . . 4 Weapon 1 | . . . . 1 Tool/Special . | . . . . . Average Slot Usage (%) 98 | . 98 100 100 98 Engine 13 | . 14 14 14 12 Treads 26 | . 26 28 28 28 Storage 14 | . 14 14 14 14 Processor 13 | . 13 14 14 14 Energy Gun 10 | . 7 14 14 9 Ballistic Gun 17 | . 19 14 14 18 Peak Build Rating 9 | 6 8 8 9 9 Average Rating 7 | 4 7 8 8 8 On Entrance 6 | . 6 8 8 9 Avg Prop Armor Cover (%) 4 | . 4 . . . Naked Turns . | . . . . . Heaviest Build 29 | 15 29 28 28 28 Greatest Support 40 | 20 40 40 40 40 Greatest Overweight (x) 1 | . 1 . . . Average Overweight (x) . | . . . . . Largest Inventory Capacity 15 | 8 15 15 15 15 Average Capacity 14 | 7 14 15 15 15 Most Carried 15 | 4 13 13 14 15 Average Carried 11 | 2 9 13 13 14 Final Capacity 15 | 8 15 15 15 15 Final Carried 15 | 4 13 13 14 15 Class Distribution -------------------- 96% | Mutant 3% | Scavenger-Mutant Dominant Class ---------------- Mutant | -10/Materials Mutant | -10/Mines Mutant | -10/Exiles Scavenger-Mutant | -9/Mines Resources | -11 -10 -10 -10 -9 ----------- Run | Yrd Mat Min Exi Min Matter Collected 706 | 213 451 . . 42 Remotely . | . . . . . Salvage Created 815 | 24 690 . . 101 Parts 55 | 5 44 . . 6 Haulers Intercepted 2 | . 2 . . . Recyclers Shooed 1 | . 1 . . . Parts Field Recycled . | . . . . . Retrieved Matter . | . . . . . Parts Self-Destructed . | . . . . . Prevented . | . . . . . Parts Restored . | . . . . . Kills | -11 -10 -10 -10 -9 ------- Run | Yrd Mat Min Exi Min Combat Hostiles Destroyed 18 | . 14 . . 4 Guns 18 | . 14 . . 4 Classes Destroyed 5 | 1 3 . . 1 Tunneler 1 | 1 . . . . Hauler 2 | . 2 . . . Operator 1 | . 1 . . . Swarmer 3 | . . . . 3 Grunt 15 | . 14 . . 1 Best Kill Streak 3 | 1 3 . . 3 Combat Bots Only 3 | . 3 . . 3 Max Kills in Single Turn 2 | 1 1 . . 2 Gunslinging 1 | . . . . 1 Exploded . | . . . . . Melee . | . . . . . Uniques/NPCs Destroyed . | . . . . . Combat | -11 -10 -10 -10 -9 -------- Run | Yrd Mat Min Exi Min Hostile Shots Fired 121 | . 85 . . 36 Missed 27 | . 19 . . 8 Hits 94 | . 66 . . 28 Projectile 94 | . 66 . . 28 Damage Taken 1056 | . 798 . . 258 Core 259 | . 183 . . 76 Absorbed by Shields . | . . . . . Core Remaining (%) 100 | 100 . . . . Volleys Fired 76 | 1 65 . . 10 Largest 2 | 2 2 . . 2 Hottest 60 | 40 60 . . 60 Shots Fired 145 | 2 123 . . 20 Gun 145 | 2 123 . . 20 Cannon . | . . . . . Launcher . | . . . . . Special . | . . . . . Kinetic 128 | 2 111 . . 15 Thermal 17 | . 12 . . 5 Explosive . | . . . . . Electromagnetic . | . . . . . Robot Hit Streak 14 | 1 14 . . 4 Robot Miss Streak 3 | 1 3 . . 2 Penetration Max . | . . . . . Secondary Targets 2 | . 1 . . 1 Max Gunslinging Chain 1 | . 1 . . 1 Shots Hit Robots 105 | 1 92 . . 12 Core Hits 43 | 1 36 . . 6 Critical Kills 1 | . 1 . . . Critical Parts Destroyed 2 | . 2 . . . Critical Strikes 3 | . 3 . . . Destroy 3 | . 3 . . . Melee Attacks . | . . . . . Impact . | . . . . . Slashing . | . . . . . Piercing . | . . . . . Sneak Attacks . | . . . . . Combat Hostiles . | . . . . . Follow-up Attacks . | . . . . . Damage Inflicted 1325 | 13 1172 . . 140 Guns 1316 | 13 1163 . . 140 Cannons . | . . . . . Explosions . | . . . . . Melee . | . . . . . Ramming 9 | . 9 . . . Kinetic 1173 | 13 1074 . . 86 Thermal 143 | . 89 . . 54 Explosive . | . . . . . Electromagnetic . | . . . . . Impact . | . . . . . Slashing . | . . . . . Piercing . | . . . . . Highest Corruption . | . . . . . Average Corruption . | . . . . . Corruption Purged . | . . . . . Corruption Blocked . | . . . . . Overload Shots . | . . . . . Overflow Damage . | . . . . . Projectiles . | . . . . . Explosions . | . . . . . Melee . | . . . . . Knockbacks . | . . . . . Impact . | . . . . . Kinetic . | . . . . . Secondary . | . . . . . Self-Inflicted Damage . | . . . . . Shots . | . . . . . Rammed 1 | . 1 . . . Targets Rammed 1 | . 1 . . . Kicked . | . . . . . Crushed . | . . . . . Highest Temperature 51 | . 51 . . 9 Average Temperature 21 | . 22 . . 8 Received Heat Transfer 480 | . 441 . . 39 Siege Activations . | . . . . . Martial Activations . | . . . . . Shielding Activations . | . . . . . Robots Disrupted . | . . . . . Combat Hostiles . | . . . . . Robots Corrupted . | . . . . . Combat Hostiles . | . . . . . Parts Fried . | . . . . . Impact Corruptions . | . . . . . Robots Melted . | . . . . . Combat Hostiles . | . . . . . Parts Melted 1 | . 1 . . . Heat Transferred 325 | . 200 . . 125 Parts Sabotaged . | . . . . . Parts Stolen . | . . . . . Parts Stripped . | . . . . . Power Chain Reactions . | . . . . . Alert | -11 -10 -10 -10 -9 ------- Run | Yrd Mat Min Exi Min Maximum Alert Level . | . . . . . Low Security (%) 100 | 100 100 100 . 100 Level 1 . | . . . . . Level 2 . | . . . . . Level 3 . | . . . . . Level 4 . | . . . . . Level 5 . | . . . . . High Security . | . . . . . Max Security . | . . . . . Peak Influence 144 | 5 144 . . 60 Initial . | . . . . . Average 41 | . 50 . . 21 Influence Increases 486 | 5 391 . . 90 Destroy 0b10 Robot/C 360 | . 280 . . 80 Destroy 0b10 Robot/NC 20 | 5 15 . . . Destroy Leader 84 | . 74 . . 10 Successful Hack 5 | . 5 . . . Destroy Structure 2 | . 2 . . . Lose Combat Pursuer 15 | . 15 . . . Influence Decreases 456 | 5 391 . . 60 Time Decay 436 | 5 371 . . 60 Lost Part 20 | . 20 . . . Squads Dispatched 4 | . 4 . . . Investigation 2 | . 2 . . . Extermination . | . . . . . Reinforcement 2 | . 2 . . . Assault . | . . . . . Garrison . | . . . . . Intercept . | . . . . . Searches Triggered . | . . . . . Construction Impeded . | . . . . . Haulers Reinforced . | . . . . . Active Scanning Responses . | . . . . . Cargo Convoy Interrupts . | . . . . . Stealth | -11 -10 -10 -10 -9 --------- Run | Yrd Mat Min Exi Min Distress Signals 1 | . 1 . . . Communications Jammed . | . . . . . Distress Signals . | . . . . . Times Spotted 32 | . 26 . . 6 Peak Tracking Total 4 | . 4 . . 4 Tactical Retreats 1 | . 1 . . . Traps | -11 -10 -10 -10 -9 ------- Run | Yrd Mat Min Exi Min Traps Triggered . | . . . . . Indirectly . | . . . . . Trap Hack Attempts . | . . . . . Triggered . | . . . . . Disarmed . | . . . . . Reprogrammed . | . . . . . Reused . | . . . . . Traps Extracted . | . . . . . Installed . | . . . . . Triggered . | . . . . . Machines | -11 -10 -10 -10 -9 ---------- Run | Yrd Mat Min Exi Min Machines Disabled . | . . . . . Max in Single Turn . | . . . . . Machines Repaired . | . . . . . Machines Dismantled . | . . . . . Machines Sabotaged . | . . . . . Overloaded Fab Kills . | . . . . . Hacking | -11 -10 -10 -10 -9 --------- Run | Yrd Mat Min Exi Min Machines Accessed 9 | . 7 . 2 . Terminals 5 | . 5 . . . Fabricators . | . . . . . Repair Stations . | . . . . . Recycling Units 2 | . 2 . . . Scanalyzers . | . . . . . Garrison Access . | . . . . . Total Hacks 16 | . 14 . 2 . Successful 8 | . 6 . 2 . Failed 8 | . 8 . . . Catastrophic 1 | . 1 . . . Database Lockouts . | . . . . . Manual 13 | . 10 . 3 . Terminals 12 | . 12 . . . Fabricators . | . . . . . Repair Stations . | . . . . . Recycling Units 2 | . 2 . . . Scanalyzers . | . . . . . Garrison Access . | . . . . . Terminal Hacks 4 | . 2 . 2 . Record 1 | . . . 1 . Robot Analysis 1 | . 1 . . . Zone Layout 1 | . 1 . . . Proto ID Catalog 1 | . . . 1 . Fabricator Hacks . | . . . . . Repair Station Hacks . | . . . . . Recycling Unit Hacks 2 | . 2 . . . Report Inventory 2 | . 2 . . . Scanalyzer . | . . . . . Garrison Access Hacks . | . . . . . Unauthorized Hacks 2 | . 2 . . . Terminals 2 | . 2 . . . Botnet 1 | . 1 . . . Operators 1 | . 1 . . . Fabricators . | . . . . . Repair Stations . | . . . . . Recycling Units . | . . . . . Scanalyzers . | . . . . . Garrison Access . | . . . . . Data Cores Recovered . | . . . . . Used . | . . . . . Hacking Detections 6 | . 6 . . . Full Trace Events 3 | . 3 . . . Feedback Events . | . . . . . Feedback Blocked . | . . . . . Robot Schematics Acquired . | . . . . . Robots Built . | . . . . . Authchips . | . . . . . Time . | . . . . . Total Robot Build Rating . | . . . . . Part Schematics Acquired . | . . . . . Parts Built . | . . . . . Authchips . | . . . . . Time . | . . . . . Total Part Build Rating . | . . . . . Part Studies Acquired . | . . . . . Parts Repaired . | . . . . . Time . | . . . . . Parts Recycled . | . . . . . Recycled Matter . | . . . . . Retrieved Matter . | . . . . . Retrieved Components . | . . . . . Parts Scanalyzed . | . . . . . Part Schematics Acquired . | . . . . . Parts Damaged . | . . . . . Bothacking | -11 -10 -10 -10 -9 ------------ Run | Yrd Mat Min Exi Min Used RIF Installer . | . . . . . Robots Hacked . | . . . . . Non-combat . | . . . . . Combat . | . . . . . Robot Hacks Applied . | . . . . . Relay Couplers Released . | . . . . . Fabnet Peak Effective % . | . . . . . Robots Rewired . | . . . . . Allies Hacked . | . . . . . Hacks Repelled . | . . . . . Allies | -11 -10 -10 -10 -9 -------- Run | Yrd Mat Min Exi Min Total Allies . | . . . . . Largest Group . | . . . . . Highest-Rated Group . | . . . . . Highest-Rated Ally . | . . . . . Total Orders . | . . . . . Ally Attacks . | . . . . . Total Damage . | . . . . . Kills . | . . . . . Allies Corrupted . | . . . . . Allies Melted . | . . . . . Intel | -11 -10 -10 -10 -9 ------- Run | Yrd Mat Min Exi Min Active Infowar (turns) 51 | 25 26 . . . Seismic 51 | 25 26 . . . Robot Analysis Total 1 | . 1 . . . Derelict Logs Recovered 1 | . . 1 . . Drone Launches . | . . . . . Drone Recoveries . | . . . . . Exploration | -11 -10 -10 -10 -9 ------------- Run | Yrd Mat Min Exi Min Turns Passed 2656 | 88 1415 152 844 157 Spaces Moved 1422 | 48 709 96 514 55 Core 3 | 3 . . . . Treads 1419 | 45 709 96 514 55 Legs . | . . . . . Wheels . | . . . . . Hover . | . . . . . Flight . | . . . . . Fastest Speed 50 | 50 160 160 160 160 Average Speed 162 | 153 164 160 160 160 Slowest Speed 240 | 160 240 160 160 160 Overloaded Moves . | . . . . . Propulsion Burnouts . | . . . . . Robots Hopped . | . . . . . Potential Cave-ins . | . . . . . Cave-ins Triggered . | . . . . . Exploration Rate (%) 45 | 6 91 35 92 4 Regions Visited 4 Branch Regions 3 Pre-discovered Areas 1 | . . . 1 . Known Exits Taken 3 | . 1 1 1 . Unknown Exits Taken 1 | 1 . . . . Scrap Searched . | . . . . . Spaces Dug . | . . . . . Terrain Destroyed . | . . . . . Melee . | . . . . . Projectile . | . . . . . AOE . | . . . . . Terrain Rammed . | . . . . . Walls Destroyed . | . . . . . Machines Disabled . | . . . . . Actions | -11 -10 -10 -10 -9 --------- Run | Yrd Mat Min Exi Min Total 1627 | 58 832 95 536 106 Wait 76 | . 40 . . 36 Move 1418 | 47 708 95 513 55 Hop . | . . . . . Pick Up 14 | 4 8 . 1 1 Fast Attach 9 | 6 2 . . 1 Attach 2 | . 2 . . . Detach 1 | . 1 . . . Swap 6 | . 4 . . 2 Drop 2 | . 1 . . 1 Fire 76 | 1 65 . . 10 Melee . | . . . . . Ram . | . . . . . Kick . | . . . . . Crush 1 | . 1 . . . Escape Stasis . | . . . . . Rewire 22 | . . . 22 . Trap . | . . . . . Miscellaneous . | . . . . . Route ------- -11/Scrapyard -10/Materials (discovered 5 exits: *Mat x3 / *Min / *Sub) -10/Mines -10/Exiles -9/Mines History --------- Turn | Location | Event 28 | -11/Scrapyard | Discovered new exit (range 15) 89 | -11/Scrapyard | Entered Materials 314 | -10/Materials | Build established: Mutant 377 | -10/Materials | Discovered new exit (range 15) 438 | -10/Materials | Discovered new exit (range 11) 454 | -10/Materials | Identified exit to Subcaves 487 | -10/Materials | Core integrity fell below 50% 757 | -10/Materials | Discovered new exit (range 14) 776 | -10/Materials | Identified exit to Materials 1033 | -10/Materials | Discovered exit to Materials (range 4) 1308 | -10/Materials | Discovered new exit (range 10) 1502 | -10/Materials | Identified exit to Mines 1504 | -10/Materials | Entered Mines 1508 | -10/Mines | Learned Materials stockpile data 1567 | -10/Mines | Met a Derelict bent on vengeance 1650 | -10/Mines | Deemed a non-threat by the Exiles lab entrance 1650 | -10/Mines | Discovered new exit (range 5) 1655 | -10/Mines | Identified exit to Exiles 1656 | -10/Mines | Entered Exiles 1695 | -10/Exiles | Met 8R-AWN 1725 | -10/Exiles | Met EX-HEX 1842 | -10/Exiles | Met EX-DEC 1963 | -10/Exiles | Met EX-BIN 1986 | -10/Exiles | Aligned with FarCom system 1987 | -10/Exiles | Given EX-Vault access code 2074 | -10/Exiles | Opened EX-Vault 2088 | -10/Exiles | Found 0b10 Alert Chip 2119 | -10/Exiles | Warned to stay clear of 0b10 Research branches 2172 | -10/Exiles | Learned location of Zion (-7) 2237 | -10/Exiles | Visited The Gauntlet 2481 | -10/Exiles | Discovered new exit (range 12) 2497 | -10/Exiles | Identified exit to Mines 2500 | -10/Exiles | Left Exiles lab with 0b10 Alert Chip 2500 | -10/Exiles | Entered Mines 2506 | -9/Mines | Core integrity fell below 20% 2559 | -9/Mines | Received a Rocket Launcher from a helpful Derelict 2657 | -9/Mines | Destroyed by G-34 Mercenary with Small Laser Last Messages --------------- 02554_ 8T-4IT(g): "Some of my friends down here think you need a mining laser when you travel the depths." 02555_ 8T-4IT(g): "Pshh... whatever." 02556_ 8T-4IT(g): "Everyone knows a good old rocket launcher goes a long way." 02557_ 8T-4IT(g): "Need to get rid of a swarm? Done. Need a big hole in the wall? Done." 02558_ 8T-4IT(g): "Need a small hole in the wall? Leave that to the mining laser wimps, I say!" 02559_ 8T-4IT(g): "Would you like a rocket launcher? I know I would if I were you, so I'm going to lend you mine." 02559_ 8T-4IT(g) slips back into the shadows. 02560_ Dropped Lgt. Treads. 02561_ Acquired Rocket Launcher. 02609_ Acquired 10 matter. 02616_ K-01 Serf collects debris. 02654_ G-47 Trooper destroyed. Map ----- +----------------------------------------------------+ | ?????????????????????????????????????????????????? | | ?????????????????????????????????????????????????? | | ?????????????????????????????????????????????????? | | ?????????????????????????????????????????????????? | | ?????????????????????????????????????????????????? | | ?????????????????????????????????????????????????? | | ?????????????????????????????????????????????????? | | ?????????????????????????????????????????????????? | | ?????????????????????????????????????????????????? | | ?????????????????????????????????????????????????? | | ?????????????????????????????????????????????????? | | ?????????????????????????????????????????????????? | | ?????????????????????????????????????????????????? | | ?????????????????????????????????????????????????? | | ?????????????????????????????????????????????????? | | ?????????????????????????????#####???????????????? | | ?????????????????????????????? ????????????????? | | ?????????????????????????????? ????????????????? | | ??????????????????????????????# #????????????????? | | ?????????????????????????###### #????????????????? | | ?????????????????????????# ##???????????????? | | ?????????????????????????## #???????????????? | | ??????????????????????????## #???????????????? | | ???????????????????????????## = #???????????????? | | ???????????????????????####?## ##???????????????? | | ??????????????????????## @##?## #????????????????? | | ?????????????????????##%=% #### #????????????????? | | ?????????????????????# = [g* #????????????????? | | ?????????????????????# %=#######????????????????? | | ?????????????????????# #??????????????????????? | | ?????????????????????## ##??????????????????????? | | ??????????????????????####???????????????????????? | | ?????????????????????????????????????????????????? | | | | | | | | | | | | | | | | | | | | | | | | | | | | | | | | | | | +----------------------------------------------------+ Best States ------------- Heat Dissipation 25 Energy Generation 10 Energy Capacity 250 Matter Stores 300 Matter Capacity 300 Sight Range 16 Terrain Scan Density 10 Evasion (%) 40 Recoil Reduction 2 Item Schematics ----------------- None Robot Schematics ------------------ None Fabricated ------------ Nothing Repaired ---------- Nothing Studied --------- None Alien Tech Used ----------------- None Achievements -------------- Sixth Sense Challenges ------------ None Game ------ Seed DispersalHackingMachine Manual? 0 Play Time 00:19:20 Cumulative 88.3 hours Start 2025.10.27 @ 15:28:49 End 2025.10.27 @ 16:01:01 Sessions 1 Manual Loads 0 Difficulty Rogue Special Mode None Game No. 93 Rogue 93 Adventurer 0 Explorer 0 Win Type - Total 0 Types 0/0/0/0/0/0/0/0/0/0 Lore% 20 Gallery% 40 Achievement% 24 Wizard Run 0 Options --------- Layout 1 ASCII 0 Keyboard 0 Movement Numpad Keybinds 0 Fullscreen 1 Font 24/Smallcaps Map View 50x35 Zoom Use 0% Tactical HUD 1 Map Filters NONE Filters NONE Steam 1 RUN: 10d4f280-d65c-4819-b4a7-45b2c442b785